bitfinex-derivatives/quotes_SOLF0:USTF0_20250923
["timestamp","ask_amount","ask_price","bid_price","bid_amount"]
[1758594154009,11.6316,216.59,216.49,7.02]
[1758594155901,11.6316,216.59,216.49,4.1532]
[1758594156103,7.48,216.64,216.52,7.02]
[1758594156705,7.48,216.62,216.53,1.47291182]
[1758594157808,4.1511,216.61,216.53,1.47291182]
[1758594158203,7.48,216.6,216.52,7.02]
[1758594158402,7.48,216.58,216.49,1.47291182]
[1758594159199,11.6318,216.58,216.49,1.47291182]
[1758594160310,7.48,216.58,216.51,1.47291182]
[1758594161012,11.6316,216.58,216.51,1.47291182]
[1758594161518,7.48,216.58,216.51,1.47291182]
[1758594161812,7.48,216.58,216.52,7.02]
[1758594162012,4.1512,216.6,216.52,7.02]
[1758594163617,4.1516,216.59,216.52,7.02]
[1758594164007,7.48,216.58,216.52,7.02]
[1758594167914,4.1516,216.59,216.52,7.02]
[1758594168119,7.48,216.56,216.52,7.02]
[1758594168706,4.1518,216.57,216.51,1.47291182]
[1758594168911,4.1518,216.57,216.51,8.49291182]
[1758594171217,7.48,216.59,216.51,8.49291182]
[1758594172213,3.20114916,216.58,216.51,8.49291182]
[1758594172413,7.48,216.59,216.53,8.49291182]
[1758594172609,7.48,216.59,216.54,7.02]
[1758594172920,11.6316,216.59,216.53,7.02]
[1758594173422,1.47291182,216.63,216.53,1.47291182]
[1758594173612,1.47291182,216.63,216.54,7.02]
[1758594173613,4.1513,216.6,216.54,7.02]
[1758594173918,3.20332875,216.59,216.53,1.47291182]
[1758594174219,3.20332875,216.59,216.54,7.02]
[1758594174414,3.20332875,216.59,216.53,1.47291182]
[1758594174618,3.20332875,216.59,216.53,8.49291182]
[1758594175818,3.20332875,216.58,216.54,7.02]
[1758594176014,7.48,216.61,216.54,7.02]
[1758594176212,3.20636835,216.6,216.54,7.02]
[1758594176412,3.20636835,216.59,216.53,8.49291182]
[1758594176612,3.20636835,216.58,216.53,1.47291182]
[1758594176817,11.6312,216.61,216.53,8.49291182]
[1758594177019,3.20803237,216.6,216.53,7.02]
[1758594177223,3.20803237,216.59,216.53,7.02]
[1758594177420,13.10411182,216.61,216.51,5.62581182]
[1758594177421,3.20803237,216.58,216.52,7.02]
[1758594177722,3.20803237,216.57,216.51,5.62581182]
[1758594177923,13.10411182,216.61,216.52,7.02]
[1758594178122,3.20889994,216.6,216.52,7.02]
[1758594178323,3.20889994,216.59,216.52,7.02]
[1758594178523,3.20889994,216.58,216.52,7.02]
[1758594178722,13.10411182,216.61,216.51,5.62581182]
[1758594178723,3.20889994,216.57,216.51,5.62581182]
[1758594178919,13.10411182,216.61,216.52,7.02]
[1758594179120,3.20890124,216.6,216.52,7.02]
[1758594179322,3.20890124,216.59,216.52,7.02]
[1758594179524,3.20890124,216.58,216.52,7.02]
[1758594179730,3.20890124,216.57,216.51,5.62581182]
[1758594180028,13.10411182,216.61,216.52,7.02]
[1758594180221,4.1514,216.59,216.52,7.02]
[1758594180418,10.68867327,216.58,216.52,7.02]
[1758594180617,3.20867327,216.57,216.52,7.05]
[1758594180931,3.20867327,216.56,216.52,7.05]
[1758594181123,7.48,216.58,216.52,7.05]
[1758594181324,3.20869578,216.57,216.53,1.47291182]
[1758594181526,7.03,216.61,216.53,8.52291182]
[1758594181718,3.20874843,216.6,216.53,8.52291182]
[1758594181922,3.20874843,216.59,216.53,8.52291182]
[1758594182125,3.20874843,216.58,216.53,1.47291182]
[1758594182325,4.1505,216.64,216.54,4.1524]
[1758594182524,3.20902978,216.63,216.56,1.47291182]
[1758594182724,3.20902978,216.62,216.56,1.47291182]
[1758594183022,3.20902978,216.61,216.57,7.05]
[1758594183323,3.20902978,216.6,216.56,1.47291182]
[1758594183529,4.1505,216.64,216.56,8.52291182]
[1758594183729,3.20876858,216.63,216.56,8.52291182]
[1758594183918,3.20876858,216.62,216.56,8.52291182]
[1758594184122,64.5554,216.67,216.54,4.1524]
[1758594184123,10.23876858,216.61,216.57,7.05]
[1758594184324,3.20876858,216.6,216.57,7.05]
[1758594184529,3.20876858,216.59,216.57,7.05]
[1758594184831,7.03,216.62,216.57,7.05]
[1758594185132,7.03,216.6,216.57,7.05]
[1758594185326,3.20849553,216.59,216.57,7.05]
[1758594185527,7.03,216.6,216.57,7.05]
[1758594185723,3.20833322,216.59,216.57,7.05]
[1758594186032,7.03,216.6,216.57,7.05]
[1758594186230,3.2083254,216.59,216.57,7.05]
[1758594186432,7.03,216.6,216.57,7.05]
[1758594186735,3.20836969,216.59,216.57,7.05]
[1758594186931,7.03,216.6,216.57,7.05]
[1758594187129,3.20811719,216.59,216.57,7.05]
[1758594187428,7.03,216.6,216.57,7.05]
[1758594187628,3.20804929,216.59,216.57,7.05]
[1758594187829,7.03,216.6,216.57,7.05]
[1758594188029,3.20804929,216.59,216.57,7.05]
[1758594188232,7.03,216.6,216.57,7.05]
[1758594188535,3.20784683,216.59,216.57,7.05]
[1758594188734,7.03,216.57,216.48,1.47291182]
[1758594188932,7.03,216.54,216.48,7.05]
[1758594189134,3.2073176,216.53,216.46,7.05]
[1758594189327,8.50291182,216.55,216.46,7.05]
[1758594189533,3.20689091,216.54,216.46,7.05]
[1758594189729,3.20689091,216.53,216.46,7.05]
[1758594189938,8.50291182,216.55,216.46,7.05]
[1758594190135,3.20596528,216.54,216.48,1.47291182]
[1758594190336,4.1518,216.58,216.49,7.05]
[1758594190337,5.62471182,216.58,216.49,7.05]
[1758594190536,3.20604866,216.57,216.49,7.05]
[1758594190743,3.20604866,216.56,216.49,7.05]
[1758594190945,3.20604866,216.55,216.49,7.05]
[1758594191246,7.03,216.59,216.52,1.47291182]
[1758594191451,3.20606244,216.58,216.53,7.05]
[1758594191747,3.20606244,216.57,216.53,7.05]
[1758594191943,7.03,216.59,216.53,7.05]
[1758594192144,3.20607484,216.58,216.52,8.52291182]
[1758594192453,3.20607484,216.57,216.52,1.47291182]
[1758594192652,7.03,216.6,216.53,7.05]
[1758594192849,3.2061171,216.59,216.53,7.05]
[1758594193048,3.2061171,216.58,216.52,8.52291182]
[1758594193250,3.2061171,216.57,216.52,1.47291182]
[1758594193450,7.03,216.6,216.53,7.05]
[1758594193749,3.20616462,216.59,216.53,7.05]
[1758594193947,3.20616462,216.58,216.52,1.47291182]
[1758594194143,3.20616462,216.57,216.53,7.05]
[1758594194350,5.06441384,216.67,216.57,7.05]
[1758594194549,3.206405,216.66,216.62,8.52291182]
[1758594194746,7.03,216.69,216.63,7.05]
[1758594194956,5.06441384,216.73,216.58,83.56]
[1758594194957,10.23775788,216.68,216.61,1.47291182]
[1758594195151,3.20775788,216.67,216.63,1.47291182]
[1758594195348,7.03,216.72,216.65,1.47291182]
[1758594195551,3.20657423,216.71,216.65,1.47291182]
[1758594195750,3.20657423,216.7,216.66,7.05]
[1758594195951,3.20657423,216.69,216.67,8.52291182]
[1758594196152,7.03,216.72,216.58,148.1413]
[1758594196153,3.20657423,216.68,216.65,8.52291182]
[1758594196453,7.03,216.72,216.65,7.05]
[1758594196654,3.20559541,216.71,216.65,7.05]
[1758594196851,7.28,216.69,216.65,7.05]
[1758594197050,3.20559541,216.68,216.65,7.05]
[1758594197248,3.20559541,216.68,216.64,1.47291182]
[1758594197451,8.75291182,216.73,216.65,7.23]
[1758594197756,3.20498707,216.72,216.65,7.23]
[1758594197946,10.48498707,216.71,216.66,8.70291182]
[1758594198155,3.20498707,216.7,216.66,8.70291182]
[1758594198455,3.20498707,216.7,216.67,7.23]
[1758594198953,10.48498707,216.7,216.66,1.47291182]
[1758594199155,3.20498707,216.69,216.66,8.70291182]
[1758594199457,7.28,216.7,216.66,8.70291182]
[1758594199652,3.20432382,216.69,216.64,1.47291182]
[1758594199857,3.20425401,216.68,216.61,7.23]
[1758594200053,3.204116,216.67,216.61,7.23]
[1758594200251,7.28,216.69,216.61,7.23]
[1758594200452,3.20379336,216.68,216.61,7.23]
[1758594200651,3.20379336,216.67,216.61,7.23]
[1758594200852,7.28,216.69,216.61,7.23]
[1758594201046,3.20376063,216.68,216.61,7.23]
[1758594201253,3.20376063,216.67,216.61,7.23]
[1758594201452,7.28,216.69,216.61,7.23]
[1758594201649,3.20350077,216.68,216.61,7.23]
[1758594201854,3.20350077,216.67,216.61,7.23]
[1758594202157,4.1498,216.68,216.61,7.23]
[1758594202559,3.20294027,216.67,216.61,7.23]
[1758594202757,4.1498,216.68,216.62,1.47291182]
[1758594202957,4.1498,216.68,216.62,8.70291182]
[1758594203254,4.1498,216.68,216.62,7.23]
[1758594203457,7.28,216.66,216.62,7.23]
[1758594204055,7.28,216.67,216.62,7.23]
[1758594204256,7.28,216.66,216.62,7.23]
[1758594204454,7.28,216.67,216.58,82.97]
[1758594204655,7.28,216.67,216.6,1.47291182]
[1758594205157,7.28,216.67,216.58,7.23]
[1758594205158,4.1502,216.66,216.58,8.70291182]
[1758594205561,4.1502,216.66,216.58,7.23]
[1758594205854,5.62311182,216.66,216.58,8.70291182]
[1758594206462,7.28,216.67,216.61,7.23]
[1758594207757,11.43,216.67,216.61,7.23]
[1758594208463,4.1504,216.65,216.58,1.47291182]
[1758594211770,4.1509,216.63,216.57,7.23]
[1758594212076,1.47291182,216.62,216.53,9.14291182]
[1758594212870,4.1511,216.61,216.53,9.14291182]
[1758594215070,4.1515,216.59,216.53,9.14291182]
[1758594216572,4.1515,216.59,216.53,7.67]
[1758594222565,7.53,216.58,216.49,7.67]
[1758594223266,13.4,216.57,216.49,7.67]
[1758594223872,7.53,216.56,216.49,7.67]
[1758594224175,7.53,216.53,216.49,7.67]
[1758594225770,7.53,216.53,216.45,114.76395509]
[1758594225771,11.6828,216.53,216.45,7.67]
[1758594226574,7.53,216.53,216.45,7.67]
[1758594230574,17.5521,216.57,216.45,7.67]
[1758594230773,20.93,216.57,216.47,2.30172846]
[1758594230975,13.4,216.57,216.48,7.67]
[1758594231479,13.4,216.57,216.5,2.30172846]
[1758594233683,13.4,216.57,216.51,7.67]
[1758594237174,7.53,216.6,216.51,7.67]
[1758594238489,11.6814,216.6,216.51,7.67]
[1758594239482,7.53,216.57,216.51,7.67]
[1758594240583,13.37,216.58,216.51,7.67]
[1758594241185,13.37,216.58,216.52,4.1528]
[1758594241474,13.37,216.58,216.53,9.63172846]
[1758594241687,13.37,216.58,216.54,7.33]
[1758594242189,13.37,216.58,216.53,2.30172846]
[1758594242379,13.37,216.58,216.54,7.33]
[1758594242680,13.37,216.58,216.53,6.45422846]
[1758594242879,13.37,216.58,216.54,7.33]
[1758594243290,13.37,216.58,216.5,7.33]
[1758594243291,20.76,216.58,216.5,7.33]
[1758594243486,20.76,216.58,216.47,9.63172846]
[1758594243684,20.76,216.58,216.48,56.16]
[1758594244085,24.9117,216.58,216.48,56.16]
[1758594244789,17.5217,216.58,216.48,56.16]
[1758594244988,7.39,216.57,216.48,56.16]
[1758594247295,11.5421,216.57,216.48,56.16]
[1758594248384,11.5421,216.57,216.47,11.4836]
[1758594248385,4.1523,216.55,216.47,7.33]
[1758594248691,7.39,216.54,216.47,7.33]
[1758594249791,4.1527,216.53,216.47,7.33]
[1758594249991,7.39,216.54,216.47,7.33]
[1758594251182,4.1527,216.53,216.47,7.33]
[1758594251394,7.39,216.54,216.47,7.33]
[1758594251793,7.39,216.54,216.44,11.4842]
[1758594252694,11.5425,216.54,216.44,11.4842]
[1758594254691,11.5429,216.52,216.44,11.4842]
[1758594255791,4.1524,216.55,216.46,4.154]
[1758594257097,7.46,216.54,216.45,7.19]
[1758594259085,4.1527,216.53,216.46,113.9]
[1758594259290,7.46,216.52,216.46,113.9]
[1758594259889,4.1531,216.51,216.45,7.19]
[1758594260100,7.46,216.5,216.46,113.9]
[1758594260598,7.46,216.5,216.46,121.09]
[1758594261700,11.6135,216.49,216.42,357.03403868]
[1758594261904,11.6135,216.49,216.43,113.9]
[1758594262801,11.6135,216.49,216.42,357.03403868]
[1758594263004,11.6135,216.49,216.43,113.9]
[1758594263295,4.1538,216.48,216.42,357.03403868]
[1758594263496,7.46,216.46,216.38,7.19]
[1758594263797,9.76172846,216.52,216.41,7.19]
[1758594264207,4.1536,216.49,216.41,7.19]
[1758594264502,3.20525087,216.48,216.41,7.19]
[1758594264695,11.6136,216.49,216.41,7.19]
[1758594264900,3.2052996,216.48,216.41,7.19]
[1758594265096,11.6136,216.49,216.41,7.19]
[1758594265297,3.20440711,216.48,216.41,7.19]
[1758594265496,11.6136,216.49,216.41,7.19]
[1758594265698,3.20455846,216.48,216.41,7.19]
[1758594265897,11.6136,216.49,216.41,7.19]
[1758594266098,7.46,216.53,216.42,7.19]
[1758594266300,3.20482205,216.52,216.42,7.19]
[1758594266598,3.20482205,216.51,216.42,7.19]
[1758594266795,4.1531,216.51,216.43,4.1546]
[1758594266997,4.1531,216.51,216.44,113.9]
[1758594269697,11.6131,216.51,216.44,113.9]
[1758594270102,7.46,216.51,216.45,7.19]
[1758594271405,4.1525,216.54,216.45,11.3442]
[1758594271603,4.1525,216.54,216.47,7.08]
[1758594273708,11.8321,216.56,216.47,7.08]
[1758594273909,11.8321,216.56,216.46,2.30172846]
[1758594273910,7.68,216.54,216.38,14.01824382]
[1758594274114,4.1537,216.48,216.38,7.08]
[1758594274314,4.1537,216.48,216.39,39.5]
[1758594275401,3.2462629,216.47,216.39,39.5]
[1758594275603,7.68,216.5,216.39,39.5]
[1758594275604,4.1541,216.46,216.39,39.5]
[1758594277415,7.68,216.47,216.4,7.08]
[1758594277416,4.1545,216.44,216.4,7.08]
[1758594277911,7.68,216.43,216.36,76.52428025]
[1758594278511,4.1548,216.42,216.36,0.80428025]
[1758594278814,4.1548,216.42,216.36,114.72428025]
[1758594279307,7.68,216.43,216.36,114.72428025]
[1758594279714,1.4753814,216.44,216.37,7.08]
[1758594280313,4.1544,216.45,216.37,7.08]
[1758594280511,4.1546,216.43,216.37,7.08]
[1758594282619,7.68,216.45,216.37,7.08]
[1758594282823,9.1553814,216.45,216.37,7.08]
[1758594283320,4.1545,216.44,216.37,7.08]
[1758594285817,9.1553814,216.45,216.37,11.2357]
[1758594287819,4.1544,216.44,216.37,11.2357]
[1758594288624,13.34,216.43,216.37,11.2357]
[1758594289525,13.34,216.43,216.37,7.08]
[1758594291631,17.4948,216.43,216.37,7.08]
[1758594291827,7.68,216.4,216.3,7.08]
[1758594292128,1.4753814,216.36,216.3,7.08]
[1758594292321,4.156,216.36,216.3,7.08]
[1758594293122,5.6313814,216.36,216.3,7.08]
[1758594293918,1.4753814,216.34,216.24,14.10907324]
[1758594294122,5.6318814,216.34,216.25,7.08]
[1758594294624,5.6321814,216.32,216.25,7.08]
[1758594295533,7.68,216.31,216.22,6.43864523]
[1758594295724,7.68,216.31,216.23,113.92]
[1758594296227,7.68,216.31,216.23,7.08]
[1758594296929,1.4753814,216.32,216.23,7.08]
[1758594297131,1.4753814,216.32,216.23,8.5553814]
[1758594297836,9.1553814,216.32,216.23,8.5553814]
[1758594298039,9.1553814,216.32,216.24,7.08]
[1758594299437,7.68,216.32,216.24,7.08]
[1758594299637,1.4753814,216.33,216.24,8.5553814]
[1758594300944,1.4753814,216.33,216.24,12.7134814]
[1758594301843,11.836,216.36,216.25,7.26]
[1758594301844,1.4753814,216.34,216.25,7.26]
[1758594302539,1.4753814,216.32,216.25,7.26]
[1758594303036,1.4753814,216.32,216.26,113.94]
[1758594303435,1.4753814,216.32,216.27,7.26]
[1758594303637,7.41,216.33,216.27,7.26]
[1758594304131,7.41,216.33,216.27,48.44]
[1758594304329,7.41,216.33,216.27,7.26]
[1758594304528,7.41,216.33,216.27,48.42]
[1758594304729,7.41,216.33,216.27,7.26]
[1758594307746,7.41,216.33,216.27,89.64]
[1758594307949,7.41,216.33,216.27,121.2]
[1758594308145,7.41,216.38,216.28,7.26]
[1758594308447,1.4753814,216.36,216.28,7.26]
[1758594308648,8.8853814,216.36,216.28,7.26]
[1758594309444,1.4753814,216.34,216.28,7.26]
[1758594309847,1.4753814,216.32,216.27,113.94]
[1758594310047,1.4753814,216.33,216.27,121.2]
[1758594311752,1.4753814,216.35,216.28,7.26]
[1758594312455,8.8853814,216.33,216.27,121.2]
[1758594314344,7.41,216.38,216.27,115.4153814]
[1758594314550,7.41,216.38,216.28,7.26]
[1758594314551,1.4753814,216.37,216.28,7.26]
[1758594314750,1.4753814,216.37,216.3,7.26]
[1758594315351,7.41,216.38,216.3,7.26]
[1758594315556,8.8853814,216.38,216.3,7.26]
[1758594315854,1.4753814,216.38,216.3,7.26]
[1758594316160,1.4753814,216.4,216.32,7.24]
[1758594317360,1.4753814,216.4,216.32,71.64]
[1758594317361,1.4753814,216.39,216.32,71.64]
[1758594317955,7.12,216.4,216.32,71.64]
[1758594318458,7.12,216.4,216.33,8.7153814]
[1758594318664,1.4753814,216.41,216.33,8.7153814]
[1758594318864,1.4753814,216.39,216.33,7.24]
[1758594320461,5.6307814,216.39,216.33,7.24]
[1758594321060,4.1554,216.39,216.33,7.24]
[1758594322458,7.12,216.4,216.33,7.24]
[1758594322655,4.1549,216.42,216.33,7.24]
[1758594323360,21.9353814,216.43,216.34,5.6316814]
[1758594323560,20.46,216.43,216.35,7.24]
[1758594323868,20.46,216.43,216.36,1.4753814]
[1758594324368,24.6147,216.43,216.36,1.4753814]
[1758594325769,11.2747,216.43,216.36,1.4753814]
[1758594328570,7.12,216.43,216.36,1.4753814]
[1758594328775,7.12,216.43,216.37,7.24]
[1758594329177,13.31,216.42,216.37,7.24]
[1758594329474,13.31,216.42,216.36,7.24]
[1758594329671,13.31,216.42,216.39,1.4753814]
[1758594329978,13.31,216.42,216.41,8.7153814]
[1758594334273,7.56,216.51,216.44,11.7744]
[1758594334476,7.56,216.51,216.46,9.0953814]
[1758594334678,7.56,216.52,216.46,9.0953814]
[1758594335874,7.56,216.49,216.39,1.4753814]
[1758594336078,3.24859071,216.48,216.39,40.9153814]
[1758594336271,7.56,216.47,216.39,40.9153814]
[1758594336673,1.4753814,216.5,216.37,1.4753814]
[1758594336674,7.56,216.45,216.37,1.4753814]
[1758594336978,7.56,216.45,216.35,9.0953814]
[1758594337281,7.56,216.43,216.35,9.0953814]
[1758594338082,1.4753814,216.44,216.31,7.62]
[1758594338083,7.56,216.41,216.31,7.62]
[1758594338274,64.6265,216.44,216.31,9.0953814]
[1758594338275,7.56,216.39,216.31,9.0953814]
[1758594339783,7.56,216.39,216.31,1.4753814]
[1758594339983,7.56,216.39,216.27,93.94]
[1758594340184,7.56,216.37,216.28,1.4753814]
[1758594340484,7.56,216.37,216.3,1.4753814]
[1758594340693,7.56,216.37,216.27,96.24671239]
[1758594341692,7.56,216.37,216.27,123.82671239]
[1758594341893,11.7158,216.37,216.27,127.98441239]
[1758594342094,7.56,216.37,216.27,7.62]
[1758594342485,7.59662076,216.47,216.27,9.92671239]
[1758594342788,64.6324,216.42,216.27,9.92671239]
[1758594342994,7.56,216.37,216.27,9.92671239]
[1758594343881,7.56,216.37,216.27,14.08431239]
[1758594344788,7.56,216.37,216.29,4.1572]
[1758594344987,4.1551,216.41,216.3,7.62]
[1758594344988,11.7151,216.41,216.3,7.62]
[1758594345187,3.2487024,216.4,216.3,7.62]
[1758594345387,3.2487024,216.39,216.3,7.62]
[1758594345583,11.7151,216.41,216.31,4.1568]
[1758594345782,3.24894089,216.4,216.31,4.1568]
[1758594345983,11.7151,216.41,216.31,4.1568]
[1758594346188,3.24891135,216.4,216.31,4.1568]
[1758594346394,11.7151,216.41,216.31,4.1568]
[1758594347790,3.24845308,216.4,216.31,4.1568]
[1758594347991,11.7151,216.41,216.31,4.1568]
[1758594348184,11.7151,216.41,216.32,7.62]
[1758594348185,3.24845878,216.4,216.32,7.62]
[1758594348495,11.7151,216.41,216.32,7.62]
[1758594349194,3.24939076,216.4,216.32,7.62]
[1758594349383,11.7151,216.41,216.32,7.62]
[1758594349588,3.24939076,216.4,216.32,7.62]
[1758594349784,11.7151,216.41,216.32,7.62]
[1758594349984,7.56,216.39,216.32,7.62]
[1758594352701,7.56,216.39,216.31,4.1568]
[1758594354098,7.56,216.39,216.3,113.9]
[1758594354701,7.56,216.39,216.32,4.1567]
[1758594354897,7.56,216.39,216.32,11.7767]
[1758594355093,7.56,216.44,216.33,7.62]
[1758594355294,3.25300063,216.43,216.33,7.62]
[1758594355493,3.25300063,216.42,216.33,7.62]
[1758594355794,3.25300063,216.41,216.33,7.62]
[1758594355998,10.81300063,216.4,216.28,7.62]
[1758594356300,3.25300063,216.39,216.28,7.62]
[1758594356497,3.25300063,216.38,216.31,4.1569]
[1758594356699,7.56,216.4,216.33,7.62]
[1758594357290,7.56,216.4,216.33,11.7765]
[1758594357598,7.56,216.4,216.33,121.68]
[1758594358497,7.56,216.4,216.33,7.62]
[1758594361303,3.25505799,216.39,216.33,7.62]
[1758594361605,7.21,216.44,216.35,7.56]
[1758594361906,7.21,216.42,216.35,7.56]
[1758594362105,3.25531196,216.41,216.35,7.56]
[1758594362306,3.25531196,216.4,216.36,7.56]
[1758594362509,7.21,216.45,216.36,7.56]
[1758594362806,11.3646,216.43,216.34,4.1563]
[1758594363003,7.21,216.41,216.32,109.16]
[1758594363301,3.2558551,216.4,216.32,7.56]
[1758594363507,3.2558551,216.4,216.32,121.52]
[1758594364308,3.2558551,216.4,216.33,4.1563]
[1758594365711,3.2558551,216.4,216.32,7.56]
[1758594365915,14.6210551,216.4,216.32,7.56]
[1758594366105,3.2558551,216.39,216.32,89.96]
[1758594366902,7.21,216.38,216.32,89.96]
[1758594367107,10.4658551,216.37,216.32,7.56]
[1758594367304,7.21,216.38,216.28,7.56]
[1758594367603,7.21,216.36,216.28,121.46]
[1758594368003,7.41360865,216.35,216.28,121.46]
[1758594368210,4.1561,216.35,216.28,121.46]
[1758594368602,4.1561,216.35,216.28,7.56]
[1758594371812,7.21,216.36,216.28,4.1574]
[1758594372110,2.30671239,216.4,216.28,4.1574]
[1758594372111,7.21,216.39,216.3,2.30671239]
[1758594372412,3.25769479,216.38,216.31,7.56]
[1758594372606,7.21,216.43,216.31,7.56]
[1758594372808,3.25783704,216.42,216.34,7.56]
[1758594373009,3.25783704,216.41,216.35,113.92]
[1758594373212,3.25783704,216.4,216.36,7.56]
[1758594373410,7.21,216.43,216.36,7.56]
[1758594373605,3.25778266,216.42,216.36,7.56]
[1758594373907,3.25778266,216.41,216.35,113.92]
[1758594374106,10.46778266,216.4,216.35,121.48]
[1758594374301,7.21,216.4,216.35,121.48]
[1758594374501,3.25825832,216.39,216.33,113.9]
[1758594374703,7.21,216.37,216.33,113.9]
[1758594375015,7.21,216.37,216.33,121.46]
[1758594375309,3.25815997,216.36,216.29,7.56]
[1758594375501,7.21,216.37,216.29,7.56]
[1758594375700,3.25818382,216.36,216.29,7.56]
[1758594375904,3.25818382,216.35,216.29,7.56]
[1758594376105,7.21,216.37,216.29,11.7172]
[1758594376307,3.25860223,216.36,216.29,11.7172]
[1758594376612,7.21,216.37,216.29,7.56]
[1758594376800,3.25859402,216.36,216.29,7.56]
[1758594377005,7.21,216.37,216.29,7.56]
[1758594377304,7.41469402,216.36,216.29,69.94]
[1758594377502,3.25859402,216.35,216.29,69.94]
[1758594378810,7.21,216.37,216.29,69.94]
[1758594379012,3.25995327,216.36,216.29,69.94]
[1758594379311,3.25995327,216.35,216.29,69.94]
[1758594379614,7.21,216.37,216.29,69.94]
[1758594379814,3.26106195,216.36,216.29,74.0971]
[1758594380110,3.26106195,216.35,216.29,74.0971]
[1758594380414,3.26106195,216.34,216.3,7.56]
[1758594380716,7.21,216.37,216.3,7.56]
[1758594380915,3.26385198,216.36,216.3,7.56]
[1758594381113,3.26385198,216.35,216.29,66.5371]
[1758594381308,3.26385198,216.34,216.3,7.56]
[1758594381509,11.3659,216.37,216.3,7.56]
[1758594381714,3.26433392,216.36,216.3,7.56]
[1758594381913,3.26433392,216.35,216.29,121.48]
[1758594382114,3.26433392,216.34,216.3,7.56]
[1758594382303,3.26433392,216.34,216.27,4.1576]
[1758594382304,3.26433392,216.33,216.28,113.92]
[1758594382505,11.3659,216.37,216.29,7.56]
[1758594382712,3.26463265,216.36,216.29,7.56]
[1758594383011,3.26463265,216.35,216.29,7.56]
[1758594383207,3.26463265,216.34,216.28,113.92]
[1758594383417,7.36,216.32,216.28,7.56]
[1758594383612,3.26463265,216.31,216.28,7.56]
[1758594384109,3.26463265,216.31,216.24,118.0782]
[1758594384312,3.26463265,216.31,216.25,7.56]
[1758594385213,3.26463265,216.31,216.26,113.92]
[1758594387320,3.26463265,216.31,216.27,7.56]
[1758594388109,3.26463265,216.31,216.26,113.92]
[1758594388622,3.26463265,216.31,216.27,7.56]
[1758594389015,3.26463265,216.31,216.26,113.92]
[1758594389411,4.1566,216.33,216.27,7.56]
[1758594389619,3.26245011,216.32,216.26,121.48]
[1758594389818,3.26245011,216.31,216.26,113.92]
[1758594390018,4.1566,216.33,216.26,121.48]
[1758594390216,4.1566,216.33,214.98,77.09417979]
[1758594390217,4.1573,216.29,216.2,4.9637569]
[1758594390422,3.26130322,216.28,216.21,102.66]
[1758594390724,7.36,216.3,216.22,7.36]
[1758594390915,3.2609323,216.29,216.22,7.36]
[1758594391121,7.3,216.34,216.22,7.36]
[1758594391323,3.2605077,216.33,216.22,7.36]
[1758594391514,3.2605077,216.32,216.24,4.1582]
[1758594391713,3.2605077,216.31,216.25,7.36]
[1758594391916,3.2605077,216.3,216.24,11.5182]
[1758594392117,7.3,216.32,216.24,11.5182]
[1758594392322,3.26029087,216.31,216.24,11.5182]
[1758594392522,7.3,216.29,216.21,7.36]
[1758594392713,3.26029087,216.28,216.21,7.36]